fUSD/lending_fUSD_20240920
["ID","MTS","AMOUNT","RATE_DAILY","PERIOD"]
[338622904,1726806077411,150.0,0.00012737,2]
[338622905,1726806077439,150.0,0.00012731,2]
[338622906,1726806077883,150.0,0.00012728,2]
[338622907,1726806095904,796.0,0.00012742,2]
[338622908,1726806101568,390.5,0.00011821,2]
[338622909,1726806117372,796.0,0.00012742,2]
[338622910,1726806128120,561.38638568,0.00023,120]
[338622911,1726806137873,150.0,0.00012738,2]
[338622912,1726806138241,150.0,0.00012732,2]
[338622913,1726806138731,796.0,0.00012742,2]
[338622914,1726806139092,500.0,0.00022999,120]
[338622915,1726806139560,500.0,0.00022999,120]
[338622916,1726806139828,500.0,0.00022999,120]
[338622917,1726806140129,500.0,0.00022999,120]
[338622918,1726806140426,291.63,0.00022999,120]
[338622919,1726806153616,500.0,0.00022999,120]
[338622920,1726806154058,500.0,0.00022999,120]
[338622921,1726806154354,309.19989872,0.00022999,120]
[338622922,1726806159993,796.0,0.00012742,2]
[338622923,1726806172753,173.13,0.00010959,2]
[338622924,1726806187114,500.7584619,0.00022999,120]
[338622925,1726806209357,169.90180674,0.000127,2]
[338622926,1726806226140,862.7014,0.000127,2]
[338622927,1726806227589,150.0,0.00015,30]
[338622928,1726806258312,-4956.44898555,0.00012744,2]
[338622929,1726806258337,-150.0,0.00012749,2]
[338622930,1726806258365,-150.0,0.00012752,2]
[338622931,1726806258387,-158.38,0.0001276,5]
[338622932,1726806258408,-150.0,0.0001276,2]
[338622933,1726806258430,-150.0,0.00012763,2]
[338622934,1726806258454,-277.66516976,0.00012766,2]
[338622935,1726806258476,-300.0,0.00012766,2]
[338622936,1726806258499,-4956.44898555,0.00012767,2]
[338622937,1726806258521,-169.90180674,0.00012767,2]
[338622938,1726806258544,-150.0,0.00012771,2]
[338622939,1726806258566,-150.0,0.00012774,2]
[338622940,1726806258589,-150.0,0.00012777,2]
[338622941,1726806258617,-1500.0,0.00012783,2]
[338622942,1726806258638,-150.0,0.00012786,2]
[338622943,1726806258660,-26481.1550524,0.00012787,2]
[338622944,1726806259874,-40000.0,0.00012787,2]
[338622945,1726806263718,-13890.22027827,0.00012787,2]
[338622946,1726806263741,-150.0,0.00012787,2]
[338622947,1726806263764,-4956.44898555,0.00012789,2]
[338622948,1726806263785,-697.69,0.0001279,2]
[338622949,1726806263806,-150.99,0.0001279,2]
[338622950,1726806263828,-157.28,0.0001279,2]
[338622951,1726806263854,-150.0,0.00012798,2]
[338622952,1726806263875,-500.0,0.00012799,2]
[338622953,1726806263897,-500.0,0.00012799,2]
[338622954,1726806263918,-500.0,0.00012799,2]
[338622955,1726806263940,-577.37414492,0.00012799,2]
[338622956,1726806263961,-230.81934943,0.00012799,2]
[338622957,1726806263983,-577.84999999,0.000128,2]
[338622958,1726806264005,-3608.05403137,0.000128,2]
[338622959,1726806264025,-1462.02,0.000128,2]
[338622960,1726806264045,-11891.25321047,0.000128,2]
[338622961,1726806274971,500.0,0.00022999,120]
[338622962,1726806275243,371.54393058,0.00022999,120]
[338622963,1726806280315,500.0,0.00022999,120]
[338622964,1726806281625,163.51,0.00011911,2]
[338622965,1726806282264,500.0,0.00022999,120]
[338622966,1726806282537,500.0,0.00022999,120]
[338622967,1726806282807,546.1,0.00022999,120]
[338622968,1726806284854,500.0,0.00022999,120]
[338622969,1726806285103,500.0,0.00022999,120]
[338622970,1726806285360,500.0,0.00022999,120]
[338622971,1726806285625,373.01,0.00022999,120]
[338622972,1726806288249,500.0,0.00022999,120]
[338622973,1726806288698,500.0,0.00022999,120]
[338622974,1726806288792,500.0,0.00022999,120]
[338622975,1726806289062,500.0,0.00022999,120]
[338622976,1726806289319,500.0,0.00022999,120]
[338622977,1726806289896,500.0,0.00022999,120]
[338622978,1726806289945,500.0,0.00022999,120]
[338622979,1726806289988,500.0,0.00022999,120]
[338622980,1726806290201,500.0,0.00022999,120]
[338622981,1726806290258,500.0,0.00022999,120]
[338622982,1726806290471,500.0,0.00022999,120]
[338622983,1726806290526,500.0,0.00022999,120]
[338622984,1726806290736,275.6,0.00022999,120]
[338622985,1726806290781,313.89,0.00022999,120]
[338622986,1726806293598,500.0,0.00022999,120]
[338622987,1726806293971,500.0,0.00022999,120]
[338622988,1726806294220,500.0,0.00022999,120]
[338622989,1726806294502,371.64,0.00022999,120]
[338622990,1726806318930,7280.0769,0.000127,2]
[338622991,1726806320635,1000.0,0.000127,2]
[338622992,1726806324295,500.0,0.00022999,120]
[338622993,1726806324585,500.0,0.00022999,120]
[338622994,1726806324872,258.76,0.00022999,120]
[338622995,1726806327174,500.0,0.00022999,120]
[338622996,1726806327432,500.0,0.00022999,120]
[338622997,1726806327694,500.0,0.00022999,120]
[338622998,1726806327971,500.0,0.00022999,120]
[338622999,1726806328224,500.0,0.00022999,120]
[338623000,1726806328483,500.0,0.00022999,120]
[338623001,1726806328944,636.73,0.00022999,120]
[338623002,1726806330687,500.0,0.00022999,120]
[338623003,1726806331312,500.0,0.00022999,120]
[338623004,1726806331607,500.0,0.00022999,120]
[338623005,1726806331920,500.0,0.00022999,120]
[338623006,1726806332244,500.0,0.00022999,120]
[338623007,1726806332682,500.0,0.00022999,120]
[338623008,1726806332942,500.0,0.00022999,120]
[338623009,1726806333203,500.0,0.00022999,120]
[338623010,1726806333449,500.0,0.00022999,120]
[338623011,1726806333715,500.0,0.00022999,120]
[338623012,1726806333979,500.0,0.00022999,120]
[338623013,1726806334253,500.0,0.00022999,120]
[338623014,1726806334532,500.0,0.00022999,120]
[338623015,1726806334791,500.0,0.00022999,120]
[338623016,1726806335084,500.0,0.00022999,120]
[338623017,1726806335361,500.0,0.00022999,120]
[338623018,1726806335658,443.86,0.00022999,120]
[338623019,1726806380198,385.9,0.00010959,2]
[338623020,1726806402352,250.0,0.00011904,2]
[338623021,1726806405473,328.09382588,0.000127,2]
[338623022,1726806407264,510.0,0.00022876,120]
[338623023,1726806410449,500.0,0.00022999,120]
[338623024,1726806410694,500.0,0.00022999,120]
[338623025,1726806410937,309.41905344,0.00022999,120]
[338623026,1726806411370,877.06,0.00010959,2]
[338623027,1726806413024,502.22127341,0.00022999,120]
[338623028,1726806414489,247.5105,0.000127,2]
[338623029,1726806414966,500.0,0.00022999,120]
[338623030,1726806415239,500.0,0.00022999,120]
[338623031,1726806415508,500.0,0.00022999,120]
[338623032,1726806415555,500.0,0.00022999,120]
[338623033,1726806415780,500.0,0.00022999,120]
[338623034,1726806415825,614.3107141,0.00022999,120]
[338623035,1726806416045,416.49,0.00022999,120]
[338623036,1726806417813,500.0,0.00022999,120]
[338623037,1726806418075,500.0,0.00022999,120]
[338623038,1726806418342,500.0,0.00022999,120]
[338623039,1726806418665,331.95915609,0.00022999,120]
[338623040,1726806421357,500.95329522,0.00022999,120]
[338623041,1726806426926,1000.0,0.00011908,2]
[338623042,1726806439775,500.52938985,0.00022999,120]
[338623043,1726806441840,501.10339167,0.00022999,120]
[338623044,1726806444854,161.02139604,0.000127,2]
[338623045,1726806464468,155.73,9.987e-05,2]
[338623046,1726806464683,155.73,0.00012251,2]
[338623047,1726806489337,500.0,0.00022999,120]
[338623048,1726806489592,500.0,0.00022999,120]
[338623049,1726806489990,500.0,0.00022999,120]
[338623050,1726806490240,500.0,0.00022999,120]
[338623051,1726806490761,500.0,0.00022999,120]
[338623052,1726806491031,432.69,0.00022999,120]
[338623053,1726806498950,250.0,0.00011904,2]
[338623054,1726806503468,3027.30583368,0.000127,2]
[338623055,1726806504727,500.0,0.00022999,120]
[338623056,1726806504982,500.0,0.00022999,120]
[338623057,1726806505229,500.0,0.00022999,120]
[338623058,1726806505723,500.0,0.00022999,120]
[338623059,1726806505769,500.0,0.00022999,120]
[338623060,1726806506021,500.0,0.00022999,120]
[338623061,1726806506302,282.45,0.00022999,120]
[338623062,1726806508542,3027.30583362,0.00012722,2]
[338623085,1726806632141,-2693.29304679,0.00012744,2]
[338623087,1726806632153,-334.01278683,0.00012744,2]
[338623088,1726806632162,-161.021396,0.0001275,2]
[338623089,1726806632172,-788.3656708,0.00012767,2]
[338623090,1726806632185,-264.40173269,0.00012767,2]
[338623091,1726806632205,-716.18874666,0.00012767,2]
[338623092,1726806632218,-1258.34968347,0.00012767,2]
[338623093,1726806632227,-3027.30583362,0.00012789,2]
[338623094,1726806632237,-1500.0,0.00012792,2]
[338623095,1726806632246,-150.0,0.00012799,2]
[338623096,1726806632255,-5836.37158835,0.000128,2]
[338623097,1726806632267,-2364.19867666,0.000128,2]
[338623098,1726806632324,-1373.45409128,0.000128,2]
[338623099,1726806632383,-19216.90740179,0.000128,2]
[338623100,1726806632395,-20886.28592884,0.000128,2]
[338623101,1726806632407,-6403.0,0.000128,2]
[338623102,1726806632418,-6636.11737844,0.000128,2]
[338623103,1726806632900,-633.31666555,0.000128,2]
[338623104,1726806636397,150.0,0.00022986,120]
[338623106,1726806638141,-1286.32787396,0.000128,2]
[338623107,1726806638253,-25547.7472519,0.000128,2]
[338623108,1726806638374,-1003.0236,0.000128,2]
[338623109,1726806638386,-1023.84229014,0.000128,2]
[338623110,1726806638424,-559.12249875,0.000128,2]
[338623111,1726806638435,-4875.07040007,0.000128,2]
[338623112,1726806638483,-99824.07749794,0.000128,2]
[338623120,1726806640177,-217710.0,0.000128,2]
[338623121,1726806640189,-550.54042248,0.000128,2]
[338623122,1726806640234,-2040.78033951,0.000128,2]
[338623123,1726806640347,-61282.56288387,0.000128,2]
[338623124,1726806640358,-521.085,0.000128,2]
[338623125,1726806640367,-150.0,0.000128,2]
[338623126,1726806640377,-6281.74510856,0.000128,2]
[338623127,1726806640386,-1315.82,0.000128,2]
[338623128,1726806640395,-157.28,0.00012801,2]
[338623129,1726806640405,-239.261,0.00012804,2]
[338623130,1726806640415,-300.0,0.00012806,2]
[338623131,1726806640425,-150.0,0.0001281,2]
[338623132,1726806640434,-150.99,0.0001281,2]
[338623133,1726806640443,-3027.30583362,0.00012811,2]
[338623134,1726806640453,-150.0,0.00012815,2]
[338623135,1726806640463,-190.68205311,0.00012816,2]
[338623136,1726806640473,-499.99,0.00012816,2]
[338623137,1726806640482,-150.0,0.00012823,2]
[338623138,1726806640491,-150.0,0.00012825,2]
[338623139,1726806640501,-150.0,0.0001283,2]
[338623140,1726806640510,-3027.30583362,0.00012833,2]
[338623142,1726806640520,-150.0,0.00012834,2]
[338623144,1726806640529,-150.0,0.00012838,2]
[338623146,1726806640540,-1903.0,0.0001284,2]
[338623148,1726806640549,-553.0,0.0001284,2]
[338623150,1726806640559,-3346.0,0.0001284,2]
[338623152,1726806640569,-276.036,0.0001284,2]
[338623154,1726806640579,-1914.0,0.0001284,2]
[338623156,1726806640588,-1080.0,0.0001284,2]
[338623158,1726806640598,-181.12,0.0001284,2]
[338623160,1726806640609,-5863.0,0.0001284,2]
[338623162,1726806640619,-632.854,0.0001284,2]
[338623164,1726806640628,-1262.0,0.0001284,2]
[338623166,1726806640637,-453.778,0.0001284,2]
[338623168,1726806640646,-9350.41,0.0001284,2]
[338623170,1726806640655,-1549.0,0.0001284,2]
[338623172,1726806640664,-1500.0,0.00012843,2]
[338623174,1726806640674,-150.0,0.00012849,2]
[338623176,1726806640684,-161.021396,0.0001285,2]
[338623178,1726806640694,-1500.0,0.00012854,2]
[338623180,1726806640703,-3027.30583362,0.00012856,2]
[338623182,1726806640712,-150.0,0.0001286,2]
[338623184,1726806640722,-500.0,0.00012865,2]
[338623186,1726806640731,-150.0,0.00012866,2]
[338623188,1726806640741,-1500.0,0.00012868,2]
[338623190,1726806640751,-150.68541,0.0001287,2]
[338623192,1726806640760,-150.0,0.00012872,2]
[338623193,1726806640770,-150.0,0.00012873,2]
[338623195,1726806640779,-500.0,0.00012874,2]
[338623197,1726806640789,-226.44305457,0.00012877,2]
[338623199,1726806640798,-3027.30583362,0.00012878,2]
[338623200,1726806640812,-150.0,0.0001288,2]
[338623201,1726806640822,-185.7454158,0.0001288,2]
[338623202,1726806640832,-500.0,0.00012882,2]
[338623203,1726806640841,-150.0,0.00012888,2]
[338623204,1726806640853,-500.0,0.00012891,2]
[338623205,1726806640862,-7470.22,0.000129,2]
[338623206,1726806640871,-2579.41768,0.000129,2]
[338623207,1726806640881,-868.3646,0.000129,2]
[338623208,1726806640890,-345.42805565,0.000129,2]
[338623209,1726806640900,-1806.7539992,0.000129,2]
[338623210,1726806640909,-6000.0,0.000129,3]
[338623211,1726806640918,-500.0,0.000129,2]
[338623212,1726806640927,-159.85984811,0.000129,2]
[338623213,1726806640937,-161.021396,0.000129,2]
[338623214,1726806640946,-3027.30583362,0.000129,2]
[338623215,1726806640955,-185.74541579,0.000129,2]
[338623216,1726806640965,-150.0,0.00012901,2]
[338623217,1726806640975,-1500.0,0.00012902,2]
[338623218,1726806640985,-977.82010179,0.00012906,2]
[338623219,1726806640995,-150.0,0.00012912,2]
[338623220,1726806641004,-150.0,0.00012918,2]
[338623222,1726806641014,-150.0,0.00012922,2]
[338623224,1726806641024,-150.0,0.00012933,2]
[338623226,1726806641034,-150.0,0.00012939,2]
[338623228,1726806641044,-150.0,0.00012941,2]
[338623230,1726806641054,-258.11761664,0.00012942,2]
[338623232,1726806641063,-150.0,0.00012945,2]
[338623234,1726806641073,-150.0,0.00012945,2]
[338623236,1726806641082,-150.0,0.00012945,2]
[338623238,1726806641092,-150.0,0.00012947,2]
[338623240,1726806641103,-155.08548893,0.00012948,2]
[338623242,1726806641115,-150.0,0.00012949,2]
[338623244,1726806641124,-150.0,0.00012953,2]
[338623246,1726806641133,-150.0,0.00012957,2]
[338623248,1726806641145,-150.0,0.00012959,2]
[338623250,1726806641154,-150.0,0.0001296,2]
[338623252,1726806641163,-1500.0,0.00012963,2]
[338623253,1726806641173,-150.0,0.00012966,2]
[338623256,1726806641182,-500.0,0.00012973,2]
[338623258,1726806641193,-500.0,0.00012973,2]
[338623259,1726806641203,-500.0,0.00012973,2]
[338623262,1726806641213,-500.0,0.00012973,2]
[338623263,1726806641222,-680.66394531,0.00012976,2]
[338623265,1726806641231,-150.0,0.00012977,2]
[338623268,1726806641241,-150.0,0.00012978,2]
[338623270,1726806641250,-578.54695556,0.00012978,2]
[338623272,1726806641259,-316131.4114707,0.0001298,2]
[338623274,1726806641269,-1500.0,0.0001298,2]
[338623275,1726806641278,-1849.80190045,0.0001298,2]
[338623277,1726806641287,-824.55181927,0.0001298,2]
[338623279,1726806641296,-150.0,0.00012981,2]
[338623280,1726806641306,-150.0,0.00012982,2]
[338623282,1726806641315,-150.0,0.00012993,2]
[338623284,1726806641324,-150.0,0.00012995,2]
[338623286,1726806641333,-150.0,0.00012996,2]
[338623288,1726806641342,-167.9707095,0.00012999,2]
[338623290,1726806641355,-226.11074038,0.00012999,2]
[338623292,1726806641364,-330.9079783,0.00012999,2]
[338623294,1726806641373,-4022.7961647,0.00012999,2]
[338623296,1726806641383,-190.0,0.00012999,2]
[338623298,1726806641392,-192.44762988,0.00012999,2]
[338623300,1726806641401,-42968.01555097,0.00013,2]
[338623302,1726806641410,-730790.49074112,0.00013,2]
[338623304,1726806641419,-403815.64016306,0.00013,2]
[338623306,1726806641428,-200745.68523912,0.00013,2]
[338623308,1726806641438,-3735484.61095326,0.00013,2]
[338623310,1726806641447,-4590644.7425473,0.00013,2]
[338623330,1726806641637,-422816.604425,0.00013,2]
[338623340,1726806641731,500.0,0.00022999,120]
[338623365,1726806641997,500.0,0.00022999,120]
[338623378,1726806642256,500.0,0.00022999,120]
[338623379,1726806642522,500.0,0.00022999,120]
[338623380,1726806642850,500.0,0.00022999,120]
[338623386,1726806643121,500.0,0.00022999,120]
[338623387,1726806643298,-1213.692,0.0001284,2]
[338623388,1726806643308,-677156.31231725,0.00013,2]
[338623389,1726806643362,500.0,0.00022999,120]
[338623390,1726806643410,-876.55232858,0.00013,2]
[338623391,1726806643643,500.0,0.00022999,120]
[338623392,1726806643913,500.0,0.00022999,120]
[338623393,1726806644176,500.0,0.00022999,120]
[338623394,1726806644442,500.0,0.00022999,120]
[338623395,1726806644740,500.0,0.00022999,120]
[338623396,1726806645005,500.0,0.00022999,120]
[338623397,1726806645282,500.0,0.00022999,120]
[338623398,1726806645542,500.0,0.00022999,120]
[338623399,1726806645821,500.0,0.00022999,120]
[338623407,1726806646069,500.0,0.00022999,120]
[338623417,1726806646266,-500.0,0.00012973,2]
[338623418,1726806646276,-287.99611871,0.00013,2]
[338623419,1726806646372,500.0,0.00022999,120]
[338623420,1726806646434,-16702.29127205,0.00012999,2]
[338623421,1726806646447,-5320.21870455,0.00012999,2]
[338623422,1726806646457,-8349.83439129,0.00013,2]
[338623423,1726806646955,-5693.78697056,0.00013,2]
[338623424,1726806647162,500.0,0.00022999,120]
[338623425,1726806647217,500.0,0.00022999,120]
[338623426,1726806684207,33869.011067,0.00012512,2]
[338623427,1726806684513,33869.011067,0.00012669,2]
[338623428,1726806692248,500.0,0.00022999,120]
[338623429,1726806692529,500.0,0.00022999,120]
[338623430,1726806692979,539.11,0.00022999,120]
[338623431,1726806702761,400.67265397,0.00022999,120]
[338623432,1726806704810,500.0,0.00022999,120]
[338623433,1726806704964,500.0,0.00022999,120]
[338623434,1726806705070,500.0,0.00022999,120]
[338623435,1726806705230,340.79412575,0.00022999,120]
[338623436,1726806705358,500.0,0.00022999,120]
[338623437,1726806705629,500.0,0.00022999,120]
[338623438,1726806705877,449.83584621,0.00022999,120]
[338623439,1726806709608,624.60018837,0.00022999,120]
[338623440,1726806713690,500.0,0.00022999,120]
[338623441,1726806713774,525.37749334,0.00022999,120]
[338623442,1726806714901,158.58,0.00010959,2]
[338623443,1726806715969,501.18440701,0.00022999,120]
[338623444,1726806743566,500.0,0.00022999,120]
[338623445,1726806743820,500.0,0.00022999,120]
[338623446,1726806744085,500.0,0.00022999,120]
[338623447,1726806744540,500.0,0.00022999,120]
[338623448,1726806744626,509.01,0.00022999,120]
[338623449,1726806744750,500.0,0.00022999,120]
[338623450,1726806745029,480.07,0.00022999,120]
[338623451,1726806745974,224.42,0.0001243,2]
[338623452,1726806749046,500.0,0.00022999,120]
[338623453,1726806749378,500.0,0.00022999,120]
[338623454,1726806749627,500.0,0.00022999,120]
[338623455,1726806749874,500.0,0.00022999,120]
[338623456,1726806750172,500.0,0.00022999,120]
[338623457,1726806750454,500.0,0.00022999,120]
[338623458,1726806750706,237.93,0.00022999,120]
[338623459,1726806753044,500.0,0.00022999,120]
[338623460,1726806753308,331.22,0.00022999,120]
[338623461,1726806753506,500.0,0.00022999,120]
[338623462,1726806756090,500.0,0.00022999,120]
[338623463,1726806756325,500.0,0.00022999,120]
[338623464,1726806757021,500.0,0.00022999,120]
[338623465,1726806757347,398.52154329,0.00022999,120]
[338623466,1726806757463,501.16025073,0.00022999,120]
[338623467,1726806758209,500.0,0.00022999,120]
[338623468,1726806758464,500.0,0.00022999,120]
[338623469,1726806758730,500.0,0.00022999,120]
[338623470,1726806759025,500.0,0.00022999,120]
[338623471,1726806759274,500.0,0.00022999,120]
[338623472,1726806759547,500.0,0.00022999,120]
[338623473,1726806759792,504.69,0.00022999,120]
[338623474,1726806762648,500.0,0.00022999,120]
[338623475,1726806762918,500.0,0.00022999,120]
[338623476,1726806763172,500.0,0.00022999,120]
[338623477,1726806763467,334.77,0.00022999,120]
[338623478,1726806765937,500.0,0.00022999,120]
[338623479,1726806766206,500.0,0.00022999,120]
[338623480,1726806766464,500.0,0.00022999,120]
[338623481,1726806766754,500.0,0.00022999,120]
[338623482,1726806767012,500.0,0.00022999,120]
[338623483,1726806767285,500.0,0.00022999,120]
[338623484,1726806767579,500.0,0.00022999,120]
[338623485,1726806767823,500.0,0.00022999,120]
[338623486,1726806768098,500.0,0.00022999,120]
[338623487,1726806768380,500.0,0.00022999,120]
[338623488,1726806768683,568.24,0.00022999,120]
[338623489,1726806776453,500.0,0.00022999,120]
[338623490,1726806776711,500.0,0.00022999,120]
[338623491,1726806777038,500.0,0.00022999,120]
[338623492,1726806777651,500.0,0.00022999,120]
[338623493,1726806777923,500.0,0.00022999,120]
[338623494,1726806778169,500.0,0.00022999,120]
[338623495,1726806778428,329.69,0.00022999,120]
[338623496,1726806786755,500.0,0.00022999,120]
[338623497,1726806787028,500.0,0.00022999,120]
[338623498,1726806787306,166.24120423,0.00022999,120]
[338623499,1726806794191,500.0,0.00022999,120]
[338623500,1726806794453,648.54,0.00022999,120]
[338623501,1726806796450,500.0,0.00022999,120]
[338623502,1726806796830,346.65669641,0.00022999,120]
[338623503,1726806798999,500.0,0.00022999,120]
[338623504,1726806799257,500.0,0.00022999,120]
[338623505,1726806799529,500.0,0.00022999,120]
[338623506,1726806799786,500.0,0.00022999,120]
[338623507,1726806800067,500.0,0.00022999,120]
[338623508,1726806800328,500.0,0.00022999,120]
[338623509,1726806800604,203.91,0.00022999,120]
[338623510,1726806892336,500.85665496,0.00022999,120]
[338623511,1726806932579,500.0,0.00022999,120]
[338623512,1726806932846,500.0,0.00022999,120]
[338623513,1726806933099,500.0,0.00022999,120]
[338623514,1726806933875,335.70619824,0.00022999,120]
[338623515,1726806987793,200.0,0.00012247,2]
[338623517,1726807013333,972.205681,0.00012512,2]
[338623518,1726807014310,36635.285173,0.00012512,2]
[338623519,1726807015226,972.205681,0.00012669,2]
[338623520,1726807015615,36635.285173,0.00012669,2]
[338623521,1726807015831,1611.302541,0.00012512,2]
[338623522,1726807016232,1611.302541,0.00012669,2]
[338623523,1726807018396,184.049758,0.00012512,2]
[338623524,1726807018724,184.049758,0.00012721,2]
[338623525,1726807058731,828.65,0.00012047,2]
[338623526,1726807073348,168.57,0.00010211,2]
[338623527,1726807073560,168.57,0.00012475,2]
[338623528,1726807078197,250.0,0.00012129,2]
[338623529,1726807081799,298.62,0.00012129,2]
[338623530,1726807099038,169.88,0.00012493,2]
[338623531,1726807296975,279.0,0.000125,2]
[338623532,1726807305680,156.55,0.00010959,2]
[338623533,1726807332807,150.0,0.00022986,120]
[338623534,1726807384972,1686.85,0.00012227,2]
[338623535,1726807513514,23900.0,0.00012203,2]
[338623536,1726807584611,840.0,0.00012233,2]
[338623537,1726807596670,510.0,0.00022876,120]
[338623539,1726807623161,250.0,0.00012263,2]
[338623540,1726807638680,591.39,0.00012236,2]
[338623541,1726807678149,166.89,0.00010296,2]
[338623542,1726807678369,166.89,0.0001256,2]
[338623543,1726807686020,1357.3726,0.000127,2]
[338623544,1726807724109,1050.0,0.00011,2]
[338623545,1726807777482,1005.95696102,0.000125,2]
[338623550,1726807832300,-725.48861933,0.000128,2]
[338623551,1726807832458,-396.64994585,0.000128,2]
[338623552,1726807832518,-109.91143482,0.000128,2]
[338623553,1726807832531,-150.0,0.00012824,2]
[338623554,1726807832540,-492.66635164,0.00012825,2]
[338623555,1726807832576,-30663.67105415,0.00012825,2]
[338623556,1726807832587,-2712.67366121,0.00012825,2]
[338623557,1726807832597,-972.205681,0.00012825,2]
[338623558,1726807832606,-2888.87011324,0.00012825,2]
[338623559,1726807832619,-33746.41505976,0.00012825,2]
[338623560,1726807832628,-1611.302541,0.00012825,2]
[338623561,1726807832637,-625.0,0.0001286,2]
[338623562,1726807832646,-1549.0,0.0001286,2]
[338623563,1726807832655,-448.0,0.0001286,2]
[338623564,1726807832664,-1262.0,0.0001286,2]
[338623565,1726807832674,-932.0,0.0001286,2]
[338623566,1726807832684,-558.0,0.0001286,2]
[338623567,1726807832694,-740.767,0.0001286,2]
[338623568,1726807832705,-553.0,0.0001286,2]
[338623569,1726807832715,-1052.386,0.0001286,2]
[338623570,1726807832724,-2956.161,0.0001286,2]
[338623571,1726807832733,-1914.0,0.0001286,2]
[338623572,1726807832743,-150.0,0.0001286,2]
[338623573,1726807832752,-150.0,0.0001286,2]
[338623574,1726807832762,-1080.0,0.0001286,2]
[338623575,1726807832771,-203.0,0.0001287,2]
[338623577,1726807832780,-154.367,0.00012891,2]
[338623578,1726807832790,-161.021396,0.000129,2]
[338623580,1726807832799,-5307.56524957,0.000129,2]
[338623585,1726807838328,-1011.13600032,0.000129,2]
[338623587,1726807838384,-1181.29875011,0.000129,2]
[338623588,1726807838394,-565.1503236,0.000129,2]
[338623589,1726807838408,-184.049758,0.00012929,2]
[338623590,1726807838418,-416.868,0.00012959,2]
[338623591,1726807838428,-500.0,0.00012973,2]
[338623592,1726807838437,-890.24,0.00012973,2]
[338623593,1726807838447,-500.0,0.00012973,2]
[338623594,1726807838456,-500.0,0.00012973,2]
[338623595,1726807838465,-499.99,0.00012973,2]
[338623596,1726807838475,-176.37568732,0.00012973,2]
[338623597,1726807838486,-7364.07432195,0.00012981,2]
[338623598,1726807838497,-14655.5202233,0.00012981,2]
[338623599,1726807838508,-11849.41652175,0.00012981,2]
[338623600,1726807838518,-972.205681,0.00012981,2]
[338623601,1726807838528,-2240.10020487,0.00012981,2]
[338623796,1726807840765,-5468.88073627,0.00012981,2]
[338623803,1726807840821,-1328.8517212,0.00012981,2]
[338623805,1726807840832,-442.83001695,0.00012981,2]
[338623956,1726807842584,621.51,0.00022999,120]